Workbook

Sheet Instructions
H4: REMEMBER
G6: In order to Print a specific budget
C7: Budget | D7: Button | G7: you must Calculate before you
C8: Type | G8: Print that particular budget.
C10: TOTAL
C11: COST
C13: CASH
C14: FLOW
C16: VARIABLE
C17: COST
C19: Note: Be sure to enable all
C20: macros on start-up.

Sheet Main
B1: Stockering Lightweight Steers On Cover Crop Temporary Winter Grazing, Hay & Supplement | U1: 3
B2: R. Curt Lacy and Lawton Stewart
B3: Agricultural & Applied Economics and Animal & Dairy Science Departments
X4: 1 | Y4: 2 | Z4: 3
B5: University of Georgia Cooperative Extension Service
Z6: (Total Cost Budget)
B7: October 2012 | Z7: (Cash Flow Budget)
Z8: (Variable Cost Budget)
B10: INPUT DATA: Your values in the unprotected or highlighted cells | Z10: RISK RATED RETURNS OVER TOTAL COST
Z11: RISK RATED RETURNS OVER CASH FLOW COST
Z12: RISK RATED RETURNS OVER VARIABLE COST
B15: Stockering Steers On Temporary Winter Grazing, Hay & Supplement
B16: (Variable Cost Budget)
B18: NUMBER OF ACRES | F18: 50 | H18: In Date | J18: 2004-11-15
B19: STOCKING RATE (HEAD/ACRE) | F19: 2 | H19: Out Date | J19: =+J18+F23 -> 2005-03-15
B20: NUMBER OF CALVES PLACED | F20: =F18*F19 -> 100 | H20: Expected Buy-Sell Margin | J20: -15
B21: DEATH LOSS (%) | F21: 1
B22: NUMBER OF CALVES SOLD | F22: =+F20*((100-F21)/100) -> 99
B23: FEEDING PERIOD (DAYS) | F23: 120
B24: MARKETING SHRINK(%) | F24: 3
F26: BEST | G26: OPT. | H26: MEDIAN | I26: PESS. | J26: WORST
B27: PAYWEIGHT TO PAYWEIGHT | F27: =+G27+0.25 -> 2.5 | G27: =+H27+0.25 -> 2.25 | H27: 2 | I27: =+H27-0.25 -> 1.75 | J27: =+I27-0.25 -> 1.5
B28: DAILY GAIN (LBS./DAY)
B29: NET SELLING WEIGHT (CWT.) | F29: =(F27*F23/100+F36) -> 7 | G29: =(G27*F23/100+F36) -> 6.7 | H29: =(H27*F23/100+F36) -> 6.4 | I29: =(I27*F23/100+F36) -> 6.1 | J29: =(J27*F23/100+F36) -> 5.8
B30: SELLING PRICE ($/CWT.) | F30: 155 | G30: =+(F30+H30)/2 -> 150 | H30: 145 | I30: =+(H30+J30)/2 -> 140 | J30: 135
B32: Item | E32: Unit | F32: Units Per Head | G32: Total Quantity (units) | H32: Unit Price ($/Unit) | I32: Total Amount
B35: VARIABLE COSTS:
B36: CALF | E36: CWT. | F36: 4 | G36: =+F36*placed -> 400 | H36: 160 | I36: =G36*H36 -> 64000
A37: Procurement Detail | B37: PROCUREMENT COST | E37: HEAD | F37: 1 | G37: 100 | H37: =+Procurement!H10 -> 7.441176471 | I37: 744.1176471
A38: Winter Grazing Detail | B38: WINTER GRAZING | E38: ACRE | F38: =1/F19 -> 0.5 | G38: 50 | H38: =+tvc_grazing/ACRES -> 126.6990411 | I38: 6334.952055
B39: HAY | E39: TON | F39: =5*0.03 -> 0.15 | G39: 15 | H39: 100 | I39: 1500
B40: RECEIVING RATION | E40: TONS | F40: =12.5*6*7/2000 -> 0.2625 | G40: 26.25 | H40: 275 | I40: 7218.75
B41: SUPPLEMENTAL FEED | E41: TONS | F41: =11*0.015 -> 0.165 | G41: 16.5 | H41: 275 | I41: 4537.5
B42: MINERAL + IONOPHORE | E42: LBS. | F42: =+F23*0.25 -> 30 | G42: 3000 | H42: 0.28 | I42: 840 | Q42: *
B43: MEDICATION,WORM,VAC. | E43: HEAD | F43: 2 | G43: 200 | H43: 4 | I43: 800
B44: GROW.STIMULANT | E44: IMPLANT | F44: 2 | G44: 200 | H44: 1 | I44: 200
B45: REPAIRS | E45: HEAD | F45: 1 | G45: 100 | H45: =AVERAGE(Fixed_Cost!F30:G31)*0.02/Fixed_Cost!G6 -> 0.8023076923 | I45: 80.23076923
B46: LAND RENTAL | E46: ACRE | F46: =F38 -> 0.5 | G46: 50 | H46: 0 | I46: 0
B47: LABOR | E47: HRS. | F47: 2 | G47: 200 | H47: 9.02 | I47: 1804
B48: DEATH LOSS | E48: PERCENT | F48: 0.01 | G48: =+I36 -> 64000 | I48: =+F48*G48 -> 640
B49: INTEREST ON OP. CAP. | E49: PERCENT | F49: 0.08 | G49: =+(SUM(I36:I48)*0.5)/placed -> 443.4977524 | H49: =+G49*(F49*F23/365) -> 11.66459842 | I49: =G49*H49/365*F23 -> 1700.785703
A50: Auction & Hauling Detail | B50: AUCTION AND HAULING | E50: HEAD | F50: 1 | G50: =F50*F20 -> 100 | H50: =+mktng_cst -> 27.26833333 | I50: =G50*H50 -> 2726.833333
B52: TOTAL VARIABLE COST | I52: =SUM(I36:I50) -> 93127.16951
B54: =+IF(bud_type=3,"No Fixed Costs for Variable Cost Budget","FIXED COST:(Click Appropriate Link at Left for Annual Fixed Cost)") -> No Fixed Costs for Variable Cost Budget
A55: Total Cost | B55: =+IF(bud_type=1,"Total Cattle Equipment Fixed Costs",IF(bud_type=2,"Total Fixed Cash Payments","")) ->  | E55: =+IF(bud_type<>3,"Head Sold","") ->  | F55: =+IF(bud_type<>3,+ROUNDUP(sold,0),0) -> 0 | H55: =+IF(bud_type<>3,I55/sold,0) -> 0 | I55: =+IF(bud_type=1,cattle_fixed,IF(bud_type=2,cf_total,0)) -> 0
A56: Cash Flow | B56: =+IF(bud_type=1,"Total Machinery Fixed Costs","") ->  | E56: =+IF(bud_type=1,"Acres","") ->  | F56: =+IF(bud_type=1,ACRES,0) -> 0 | H56: =+IF(bud_type=1,I56/ACRES,0) -> 0 | I56: =+IF(bud_type=1,mach_fixed,0) -> 0
B57: =+IF(bud_type=1,"Overhead","") ->  | E57: =+IF(bud_type=1,"Head Sold","") ->  | F57: =+IF(bud_type=1,+ROUNDUP(sold,0),0) -> 0 | H57: 0 | I57: =+IF(bud_type=1,H57*F57,0) -> 0
B58: =+IF(bud_type=1,"Management ","") ->  | E58: =+IF(bud_type=1,"% of Value Added","") ->  | F58: =+IF(bud_type=1,(H88-I36),0) -> 0 | H58: 0.06 | I58: =+IF(bud_type=1,H58*F58,0) -> 0
B59: =+IF(bud_type=1,"Land","") ->  | E59: =+IF(bud_type=1,"Acres","") ->  | F59: =+IF(bud_type=1,ACRES,0) -> 0 | H59: 0 | I59: =+IF(bud_type=1,H59*F59,0) -> 0
B60: TOTAL FIXED COST | I60: =SUM(I55:I59) -> 0
B62: COST OF GAIN SUMMARY AND MAX. BREAKEVEN CALF PRICE
I63: $/CWT.
B64: FEED ONLY COST OF GAIN ($/CWT.) | I64: =SUM(I38:I42)/(D88-G36) -> 87.46233756
B65: FEEDING COST OF GAIN ($/CWT.) | I65: =+(+I52-I36-I37)/(D88-G36) -> 121.5027905
B66: TOTAL COST OF GAIN ($/CWT.) | I66: =+(+F80-I36-I37)/(D88-G36) -> 121.5027905
B68: MAX. BREAKEVEN PURCHASE PRICE OF CALF | I68: =+(+H88-(+F80-I36))/G36 -> 156.8620762
B71: EXPECTED BREAKEVEN TABLE
B73: ITEM | E73: TOTAL AMOUNT | H73: $ / CWT. | I73: $/HD.
B74: VARIABLE COST | F74: =I52 -> 93127.16951 | H74: =F74/(U168*F20) -> 145.5112024 | I74: =+F74/sold -> 940.6784799
B75: =+B55 ->  | F75: =IF(I55>0,I55,0) -> 0 | H75: =IF(F75>0,F75/(U168*F20),0) -> 0 | I75: 0
B76: =+B56 ->  | F76: =I56 -> 0 | H76: =F76/(U168*F20) -> 0 | I76: 0
B77: =+B57 ->  | F77: =I57 -> 0 | H77: =F77/(U168*F20) -> 0 | I77: 0
B78: =+B58 ->  | F78: =I58 -> 0 | H78: =F78/(U168*F20) -> 0 | I78: 0
B79: =+B59 ->  | F79: =I59 -> 0 | H79: =F79/(U168*F20) -> 0 | I79: 0
B80: TOTAL COST | F80: =SUM(F74:F79) -> 93127.16951 | H80: =F80/(U168*F20) -> 145.5112024 | I80: 940.6784799
B83: EXPECTED RETURN TABLE
E84: =+sold -> 99 | F84: head sold
B86: EXP. WEIGHT | D86: TOTAL WEIGHT | F86: EXP. PRICE | H86: TOTAL RETURN
B87: (cwt./hd.) | D87: (cwt.) | F87: ($/cwt.)
B88: =+U168 -> 6.4 | D88: =+B88*sold -> 633.6 | F88: =+W168 -> 145 | H88: =+F88*D88 -> 91872
B91: RISK RATED RETURNS OVER VARIABLE COST
B93: Net return levels (TOP ROW);
B94: The chances of obtaining this level or more (MIDDLE ROW); and
B95: The chances of obtaining this level or less (BOTTOM ROW).
E97: Optimistic | G97: Expected | I97: Pessimistic
B98: Returns | D98: =U207:U207+1.5*W206:W206 -> 7773.177707 | E98: =U207:U207+W206:W206 -> 5073.061969 | F98: =U207:U207+0.5*W206:W206 -> 2372.946231 | G98: =U207:U207 -> -327.1695076 | H98: =U207:U207-0.5*W207:W207 -> -3027.285246 | I98: =U207:U207-W207:W207 -> -5727.400984 | J98: =U207:U207-1.5*W207:W207 -> -8427.516722
B99: Chances | D99: =IF(V210<1,IF(U210,Z210,1-Z210),IF(U210,Z211,1-Z211)) -> 0.06680727938 | E99: =IF(AB210<1,IF(AA210,AF210,1-AF210),IF(AA210,AF211,1-AF211)) -> 0.1586553132 | F99: =IF(AH210<1,IF(AG210,AL210,1-AL210),IF(AG210,AL211,1-AL211)) -> 0.3085375586 | G99: =IF(V212<1,IF(U212,Z212,1-Z212),IF(U212,Z213,1-Z213)) -> 0.5000000002 | H99: =IF(AB212<1,IF(AA212,AF212,1-AF212),IF(AA212,AF213,1-AF213)) -> 0.6914624414 | I99: =IF(AH212<1,IF(AG212,AL212,1-AL212),IF(AG212,AL213,1-AL213)) -> 0.8413446868 | J99: =IF(V214<1,IF(U214,Z214,1-Z214),IF(U214,Z215,1-Z215)) -> 0.9331927206
B100: Chances | D100: =IF(V210<1,IF(U210,1-Z210,Z210),IF(U210,1-Z211,Z211)) -> 0.9331927206 | E100: =IF(AB210<1,IF(AA210,1-AF210,AF210),IF(AA210,1-AF211,AF211)) -> 0.8413446868 | F100: =IF(AH210<1,IF(AG210,1-AL210,AL210),IF(AG210,1-AL211,AL211)) -> 0.6914624414 | G100: =IF(V212<1,IF(U212,1-Z212,Z212),IF(U212,1-Z213,Z213)) -> 0.4999999998 | H100: =IF(AB212<1,IF(AA212,1-AF212,AF212),IF(AA212,1-AF213,AF213)) -> 0.3085375586 | I100: =IF(AH212<1,IF(AG212,1-AL212,AL212),IF(AG212,1-AL213,AL213)) -> 0.1586553132 | J100: =IF(V214<1,IF(U214,1-Z214,Z214),IF(U214,1-Z215,Z215)) -> 0.06680727938
B102: CHANCE FOR PROFIT | E102: =IF(AB214<1,IF(AA214,AF214,1-AF214),IF(AA214,AF215,1-AF215)) -> 0.4758450498 | F102: BASE BUDGETED NET REVENUE | J102: =+U155*H29*H30-F80 -> -327.1695076
F103: Profit (Loss) Per Head Placed | J103: =+J102/placed -> -3.271695076
B105: PROFIT IS RETURN TO RISK AND ALL "ZERO" ITEMS IN THE BUDGET.
B106: MAY ENTER YOUR OWN VALUES.
T153: * | U153: Must match budget Entries | Y153: * | AV153: 1
T154: * | U154: - | Y154: *
T155: * | U155: =+F20 -> 100 | V155: HEAD | Y155: *
T156: * | U156: =+F29 -> 7 | V156: Best Y | W156: =+F30 -> 155 | X156: Best P | Y156: *
P157: % | T157: * | U157: =+G29 -> 6.7 | V157: Opt. Y | W157: =+G30 -> 150 | X157: Opt. P | Y157: *
T158: * | U158: =+H29 -> 6.4 | V158: Med. Y | W158: =H30 -> 145 | X158: Med. P | Y158: *
T159: * | U159: =+I29 -> 6.1 | V159: Pess. Y | W159: =I30 -> 140 | X159: Pess. P | Y159: *
T160: * | U160: =+J29 -> 5.8 | V160: Worst Y | W160: =J30 -> 135 | X160: Worst P | Y160: *
T161: * | U161: 0 | V161: H&MC | Y161: *
T162: * | U162: =+F80 -> 93127.16951 | V162: T.C. | Y162: *
T163: * | U163: * | Y163: *
T164: : | U164: - | Y164: :
T166: : | V166: Calculations | Y166: :
T167: : | U167: - | Y167: :
T168: : | U168: =0.04*U156+0.25*U157+0.42*U158+0.25*U159+0.04*U160 -> 6.4 | V168: Exp. Y | W168: =0.04*W156+0.25*W157+0.42*W158+0.25*W159+0.04*W160 -> 145 | X168: Exp. P | Y168: :
T169: : | U169: =0.25*(U156-U168)+0.5*(U157-U168) -> 0.3 | V169: SYO | W169: =0.25*(W156-W168)+0.5*(W157-W168) -> 5 | X169: SPO | Y169: :
T170: : | U170: =0.25*(U168-U160)+0.5*(U168-U159) -> 0.3 | V170: SYP | W170: =0.25*(W168-W160)+0.5*(W168-W159) -> 5 | X170: SPP | Y170: :
T180: : | U180: =U169^2 -> 0.09 | V180: VYO | W180: =W169^2 -> 25 | X180: VPO | Y180: :
T181: : | U181: =U170^2 -> 0.09 | V181: VYP | W181: =W170^2 -> 25 | X181: VPP | Y181: :
T182: : | U182: - | Y182: :
T183: : | U183: =(U168^2*W180)+(W168-U161)^2*U180 -> 2916.25 | V183: VTRHH | W183: =(U168^2*W181)+(W168-U161)^2*U181 -> 2916.25 | X183: VTRLL | Y183: :
T184: : | U184: =(U168^2*W180)+(W168-U161)^2*U181 -> 2916.25 | V184: VTRHL | W184: =U168^2*W181+(W168-U161)^2*U180 -> 2916.25 | X184: VTRLH | Y184: :
T185: : | U185: =SQRT(U183) -> 54.00231477 | V185: STRHH | W185: =SQRT(W183) -> 54.00231477 | X185: STRLL | Y185: :
T187: : | U187: =SQRT(U184) -> 54.00231477 | V187: STRHL | W187: =SQRT(W184) -> 54.00231477 | X187: STRLH | Y187: :
T188: : | U188: =0.66*U185+0.17*U187+0.17*W187 -> 54.00231477 | V188: STRO | W188: =0.66*W185+0.17*U187+0.17*W187 -> 54.00231477 | X188: STRP | Y188: :
T189: : | U189: - | Y189: :
T190: : | U190: Calculation of NR and for Z values | Y190: :
T200: : | U200: - | Y200: :
T201: : | U201: =W158 -> 145 | V201: MP | W201: =+U207-U205 -> 0 | X201: ENR_MNR | Y201: : | AO201: 1
T202: : | U202: =U158 -> 6.4 | V202: MY | W202: =U155*U185 -> 5400.231477 | X202: STRHH | Y202: :
T203: : | U203: =+U206+0.33*(W207-W206) -> 92800 | V203: MTR | W203: =U155*W185 -> 5400.231477 | X203: STRLL | Y203: :
T204: : | U204: =+F80 -> 93127.16951 | V204: MTC | W204: =U155*U187 -> 5400.231477 | X204: STRHL | Y204: :
T205: : | U205: =U203-U204 -> -327.1695076 | V205: MNR | W205: =U155*W187 -> 5400.231477 | X205: STRLH | Y205: :
T206: : | U206: =U155*U168*W168 -> 92800 | V206: ETR | W206: =U155*U188 -> 5400.231477 | X206: STRO | Y206: :
T207: : | U207: =U206-U204 -> -327.1695076 | V207: ENR | W207: =U155*W188 -> 5400.231477 | X207: STRP | Y207: :
T208: : | U208: - | Y208: :
U210: =+D98>=U205 -> TRUE | V210: =ABS((D98-U207)/IF(U210,W206,W207)) -> 1.5 | W210: =MIN(2.5,ABS((D98-(U205+W201*ABS(D98-U205)/ABS(IF(U210,W206+W201,W207-W201))*MIN(1,V210)))/(MIN(1.52,V210)/1.52*IF(U210,W202,W203)+(1.52-MIN(1.52,V210))/3.04*W204+(1.52-MIN(1.52,V210))/3.04*W205))) -> 1.5 | X210: =1/(1+(0.2316419*W210)) -> 0.7421354882 | Y210: =0.398942281*((2.71828)^((-(W210^2)/2))) -> 0.1295176939 | Z210: =Y210*(0.31938153*X210-0.356563782*X210^2+1.781477937*X210^3-1.821255978*X210^4+1.330274429*X210^5) -> 0.06680727938 | AA210: =+E98>=U205 -> TRUE | AB210: =ABS((E98-U207)/IF(AA210,W206,W207)) -> 1 | AC210: =MIN(2.5,ABS((E98-(U205+W201*ABS(E98-U205)/ABS(IF(AA210,W206+W201,W207-W201))*MIN(1,AB210)))/(MIN(1.52,AB210)/1.52*IF(AA210,W202,W203)+(1.52-MIN(1.52,AB210))/3.04*W204+(1.52-MIN(1.52,AB210))/3.04*W205))) -> 1 | AD210: =1/(1+(0.2316419*AC210)) -> 0.8119243101 | AE210: =0.398942281*((2.71828)^((-(AC210^2)/2))) -> 0.2419708063 | AF210: =AE210*(0.31938153*AD210-0.356563782*AD210^2+1.781477937*AD210^3-1.821255978*AD210^4+1.330274429*AD210^5) -> 0.1586553132 | AG210: =+F98>=U205 -> TRUE | AH210: =ABS((F98-U207)/IF(AG210,W206,W207)) -> 0.5 | AI210: =MIN(2.5,ABS((F98-(U205+W201*ABS(F98-U205)/ABS(IF(AG210,W206+W201,W207-W201))*MIN(1,AH210)))/(MIN(1.52,AH210)/1.52*IF(AG210,W202,W203)+(1.52-MIN(1.52,AH210))/3.04*W204+(1.52-MIN(1.52,AH210))/3.04*W205))) -> 0.5 | AJ210: =1/(1+(0.2316419*AI210)) -> 0.8962011333 | AK210: =0.398942281*((2.71828)^((-(AI210^2)/2))) -> 0.3520653569 | AL210: =AK210*(0.31938153*AJ210-0.356563782*AJ210^2+1.781477937*AJ210^3-1.821255978*AJ210^4+1.330274429*AJ210^5) -> 0.3085375586
W211: =MIN(2.5,ABS((D98-U207)/(MIN(1.52,V210)/1.52*IF(U210,W202,W203)+(1.52-MIN(1.52,V210))/3.04*W204+(1.52-MIN(1.52,V210))/3.04*W205))) -> 1.5 | X211: 0.7421354882 | Y211: 0.1295176939 | Z211: 0.06680727938 | AC211: =MIN(2.5,ABS((E98-U207)/(MIN(1.52,AB210)/1.52*IF(AA210,W202,W203)+(1.52-MIN(1.52,AB210))/3.04*W204+(1.52-MIN(1.52,AB210))/3.04*W205))) -> 1 | AD211: 0.8119243101 | AE211: 0.2419708063 | AF211: 0.1586553132 | AI211: =MIN(2.5,ABS((F98-U207)/(MIN(1.52,AH210)/1.52*IF(AG210,W202,W203)+(1.52-MIN(1.52,AH210))/3.04*W204+(1.52-MIN(1.52,AH210))/3.04*W205))) -> 0.5 | AJ211: =1/(1+(0.2316419*AI211)) -> 0.8962011333 | AK211: =0.398942281*((2.71828)^((-(AI211^2)/2))) -> 0.3520653569 | AL211: =AK211*(0.31938153*AJ211-0.356563782*AJ211^2+1.781477937*AJ211^3-1.821255978*AJ211^4+1.330274429*AJ211^5) -> 0.3085375586
U212: =+G98>=U205 -> TRUE | V212: =ABS((G98-U207)/IF(U212,W206,W207)) -> 0 | W212: =MIN(2.5,ABS((G98-(U205+W201*ABS(G98-U205)/ABS(IF(U212,W206+W201,W207-W201))*MIN(1,V212)))/(MIN(1.52,V212)/1.52*IF(U212,W202,W203)+(1.52-MIN(1.52,V212))/3.04*W204+(1.52-MIN(1.52,V212))/3.04*W205))) -> 0 | X212: 1 | Y212: 0.398942281 | Z212: 0.5000000002 | AA212: =+H98>=U205 -> FALSE | AB212: =ABS((H98-U207)/IF(AA212,W206,W207)) -> 0.5 | AC212: =MIN(2.5,ABS((H98-(U205+W201*ABS(H98-U205)/ABS(IF(AA212,W206+W201,W207-W201))*MIN(1,AB212)))/(MIN(1.52,AB212)/1.52*IF(AA212,W202,W203)+(1.52-MIN(1.52,AB212))/3.04*W204+(1.52-MIN(1.52,AB212))/3.04*W205))) -> 0.5 | AD212: 0.8962011333 | AE212: 0.3520653569 | AF212: 0.3085375586 | AG212: =+I98>=U205 -> FALSE | AH212: =ABS((I98-U207)/IF(AG212,W206,W207)) -> 1 | AI212: =MIN(2.5,ABS((I98-(U205+W201*ABS(I98-U205)/ABS(IF(AG212,W206+W201,W207-W201))*MIN(1,AH212)))/(MIN(1.52,AH212)/1.52*IF(AG212,W202,W203)+(1.52-MIN(1.52,AH212))/3.04*W204+(1.52-MIN(1.52,AH212))/3.04*W205))) -> 1 | AJ212: =1/(1+(0.2316419*AI212)) -> 0.8119243101 | AK212: =0.398942281*((2.71828)^((-(AI212^2)/2))) -> 0.2419708063 | AL212: =AK212*(0.31938153*AJ212-0.356563782*AJ212^2+1.781477937*AJ212^3-1.821255978*AJ212^4+1.330274429*AJ212^5) -> 0.1586553132
W213: =MIN(2.5,ABS((G98-U207)/(MIN(1.52,V212)/1.52*IF(U212,W202,W203)+(1.52-MIN(1.52,V212))/3.04*W204+(1.52-MIN(1.52,V212))/3.04*W205))) -> 0 | X213: 1 | Y213: 0.398942281 | Z213: 0.5000000002 | AC213: =MIN(2.5,ABS((H98-U207)/(MIN(1.52,AB212)/1.52*IF(AA212,W202,W203)+(1.52-MIN(1.52,AB212))/3.04*W204+(1.52-MIN(1.52,AB212))/3.04*W205))) -> 0.5 | AD213: 0.8962011333 | AE213: 0.3520653569 | AF213: 0.3085375586 | AI213: =MIN(2.5,ABS((I98-U207)/(MIN(1.52,AH212)/1.52*IF(AG212,W202,W203)+(1.52-MIN(1.52,AH212))/3.04*W204+(1.52-MIN(1.52,AH212))/3.04*W205))) -> 1 | AJ213: =1/(1+(0.2316419*AI213)) -> 0.8119243101 | AK213: =0.398942281*((2.71828)^((-(AI213^2)/2))) -> 0.2419708063 | AL213: =AK213*(0.31938153*AJ213-0.356563782*AJ213^2+1.781477937*AJ213^3-1.821255978*AJ213^4+1.330274429*AJ213^5) -> 0.1586553132
U214: =+J98>=U205 -> FALSE | V214: =ABS((J98-U207)/IF(U214,W206,W207)) -> 1.5 | W214: =MIN(2.5,ABS((J98-(U205+W201*ABS(J98-U205)/ABS(IF(U214,W206+W201,W207-W201))*MIN(1,V214)))/(MIN(1.52,V214)/1.52*IF(U214,W202,W203)+(1.52-MIN(1.52,V214))/3.04*W204+(1.52-MIN(1.52,V214))/3.04*W205))) -> 1.5 | X214: 0.7421354882 | Y214: 0.1295176939 | Z214: 0.06680727938 | AA214: =0>=U205 -> TRUE | AB214: =ABS((0-U207)/IF(AA214,W206,W207)) -> 0.06058434884 | AC214: =MIN(2.5,ABS((0-(U205+W201*ABS(0-U205)/ABS(IF(AA214,W206+W201,W207-W201))*MIN(1,AB214)))/(MIN(1.52,AB214)/1.52*IF(AA214,W202,W203)+(1.52-MIN(1.52,AB214))/3.04*W204+(1.52-MIN(1.52,AB214))/3.04*W205))) -> 0.06058434884 | AD214: 0.9861603502 | AE214: 0.3982108014 | AF214: 0.4758450498
W215: =MIN(2.5,ABS((J98-U207)/(MIN(1.52,V214)/1.52*IF(U214,W202,W203)+(1.52-MIN(1.52,V214))/3.04*W204+(1.52-MIN(1.52,V214))/3.04*W205))) -> 1.5 | X215: 0.7421354882 | Y215: 0.1295176939 | Z215: 0.06680727938 | AC215: =MIN(2.5,ABS((0-U207)/(MIN(1.52,AB214)/1.52*IF(AA214,W202,W203)+(1.52-MIN(1.52,AB214))/3.04*W204+(1.52-MIN(1.52,AB214))/3.04*W205))) -> 0.06058434884 | AD215: 0.9861603502 | AE215: 0.3982108014 | AF215: 0.4758450498
U219: EXPDATA:
U220: =U155 -> 100 | V220: =U168 -> 6.4 | W220: =W168 -> 145 | X220: =I80 -> 940.6784799 | Y220: =W206 -> 5400.231477 | Z220: =W207 -> 5400.231477 | AA220: =W202 -> 5400.231477 | AB220: =W204 -> 5400.231477 | AC220: =W203 -> 5400.231477 | AD220: =W205 -> 5400.231477

Sheet Winter Grazing
B1: Winter Annual Grazing Budget | R1: 3 | X1: 3 | Y1: 2 | Z1: 1
B3: Ext. Ag. Econ. Dept., Univ. of Ga. | Z3: (Total Cost Budget)
B4: Revised 2003 | Z4: (Cash Flow Budget)
Z5: (Variable Cost Budget)
B7: INPUT DATA: Your values in the unprotected or highlighted cells | Z7: DIRECT FIXED COST
Z8: ANNUAL FIXED PAYMENT
Z9: DIRECT FIXED COST
Z11: RISK RATED RETURNS OVER TOTAL COST
B12: Cover Crop Temporary Winter Grazing | Z12: RISK RATED RETURNS OVER CASH FLOW COST
Z13: RISK RATED RETURNS OVER VARIABLE COST
F15: (Variable Cost Budget) | J15: Return to Main budget
B16: Number of Acres | F16: =+ACRES -> 50
B17: Number of 1,000 # Animal Units/acre | F17: 1
B18: Expected number of grazing days/acre | F18: 150
G22: UNITS | H22: TOTAL | I22: UNIT | J22: TOTAL | K22: YOUR
B23: ITEM | F23: UNIT | G23: PER ACRE | H23: QUANTITY | I23: PRICE | J23: AMOUNT | K23: FARM
B24: VARIABLE COSTS: | H24: (units) | I24: ($/unit)
B25: SEED
B26: Wheat | F26: BU | G26: 0 | H26: =G26*ACRES -> 0 | I26: 11.5 | J26: =H26*I26 -> 0
B27: Rye | F27: BU | G27: 1 | H27: 60 | I27: 11.5 | J27: =H27*I27 -> 690
B28: Oats | F28: BU | G28: 1 | H28: 60 | I28: 8 | J28: =H28*I28 -> 480
B29: LIME | F29: TON | G29: 0 | H29: =G29*F16 -> 0 | I29: 24 | J29: =H29*I29 -> 0
B30: FERTILIZER:
B31: NITROGEN | F31: LB. | G31: 135 | H31: =G31*F16 -> 6750 | I31: 0.75 | J31: =H31*I31 -> 5062.5
B32: PHOSPHATE | F32: LB. | G32: 0 | H32: =G32*F16 -> 0 | I32: 0.2 | J32: =H32*I32 -> 0
B33: POTASH | F33: LB. | G33: 0 | H33: =G33*F16 -> 0 | I33: 0.17 | J33: =H33*I33 -> 0
B34: MACHINERY
B35: FUEL | F35: GAL. | G35: 0 | H35: =G35*F16 -> 0 | I35: 1 | J35: =H35*I35 -> 0
B36: REPAIRS & MAINT. | F36: ACRE | G36: 0 | H36: =G36*F16 -> 0 | I36: 12.08 | J36: =H36*I36 -> 0
B37: LAND RENTAL | F37: ACRE | G37: 0 | H37: =G37*F16 -> 0 | I37: 0 | J37: =H37*I37 -> 0
B38: LABOR | F38: HRS. | G38: 0 | H38: =G38*F16 -> 0 | I38: 9.02 | J38: =H38*I38 -> 0
B39: Custom Planting | F39: Acre | G39: 0 | H39: =G39*F16 -> 0 | I39: 14 | J39: =H39*I39 -> 0
B40: INTEREST ON OP. CAP. | F40: % | G40: 1 | H40: =SUM(J25:J39)*0.5 -> 3116.25 | I40: 0.08 | J40: =+(I40*H40)*days/365 -> 102.4520548
B41: TOTAL VARIABLE COST | J41: =SUM(J25:J40) -> 6334.952055
A43: Calculate Fixed Cost | B43: =IF($R$1=3,"FIXED COST:(No Fixed Cost for Variable Cost Budget","FIXED COST:(Click Appropriate Link for Calculation of Fixed Costs or Payments)") -> FIXED COST:(No Fixed Cost for Variable Cost Budget | H43: =IF($R$1<>3,ACRES,"") ->  | I43: =IF($R$1=1,TFC,IF($R$1=2,payment,"")) ->  | J43: =IF($R$1<>3,I43*H43,"") -> 
A44: Calculate Fixed Payment | B44: =IF($R$1=1,"OVERHEAD"," ") ->  | F44: =IF($R$1=1,"ACRE"," ") ->  | H44: =IF($R$1=1,ACRES,"") ->  | I44: =IF($R$1=1,3,"") ->  | J44: =IF($R$1=1,I44*H44,"") -> 
B45: =IF($R$1=1,"MANAGEMENT"," ") ->  | F45: =IF($R$1=1,"% EXPENSES"," ") ->  | H45: =IF($R$1=1,tVC,"") ->  | I45: =IF($R$1=1,0.05,"") ->  | J45: =IF($R$1=1,I45*H45,"") -> 
B46: =IF($R$1=1,"LAND"," ") ->  | F46: =IF($R$1=1,"ACRE"," ") ->  | H46: =IF($R$1=1,ACRES,"") ->  | I46: =IF($R$1=1,0," ") ->  | J46: =IF($R$1=1,I46*H46,"") -> 
B47: TOTAL FIXED COST | J47: =+SUM(J43:J46) -> 0
B49: TOTAL COST | J49: =+J47+tvc_grazing -> 6334.952055
B58: SENSITIVITY ANALYSIS-VARIABLE COSTS
C60: Cost Per Grazing Day at Various Combinations of Grazing Days & Costs Per Acre
D61: -0.25 | E61: -0.1 | F61: Expected | G61: +10% | H61: +25%
C62: Grazing Days | D62: =+F62*0.75 -> 4751.214041 | E62: =+F62*0.9 -> 5701.456849 | F62: =+tvc_grazing -> 6334.952055 | G62: =+F62*1.1 -> 6968.44726 | H62: =+F62*1.25 -> 7918.690068
C63: 30 | D63: =+D$62/$C63 -> 158.3738014 | E63: 190.0485616 | F63: 211.1650685 | G63: 232.2815753 | H63: 263.9563356
C64: 60 | D64: 79.18690068 | E64: 95.02428082 | F64: 105.5825342 | G64: 116.1407877 | H64: 131.9781678
C65: 90 | D65: 52.79126712 | E65: 63.34952055 | F65: 70.38835616 | G65: 77.42719178 | H65: 87.98544521
C66: 120 | D66: 39.59345034 | E66: 47.51214041 | F66: 52.79126712 | G66: 58.07039384 | H66: 65.9890839
C67: 150 | D67: 31.67476027 | E67: 38.00971233 | F67: 42.2330137 | G67: 46.45631507 | H67: 52.79126712
C68: 180 | D68: 26.39563356 | E68: 31.67476027 | F68: 35.19417808 | G68: 38.71359589 | H68: 43.9927226
C71: Grazing Days Required to Breakeven at Various Dollars Per Day Drylot Cost & Per Acre Cost
D72: -0.25 | E72: -0.1 | F72: Expected | G72: +10% | H72: +25%
C73: $/Day Drylot Costs | D73: =+D62 -> 4751.214041 | E73: =+E62 -> 5701.456849 | F73: =+F62 -> 6334.952055 | G73: =+G62 -> 6968.44726 | H73: =+H62 -> 7918.690068
C74: 0.25 | D74: =+D$73/$C74 -> 19004.85616 | E74: 22805.8274 | F74: 25339.80822 | G74: 27873.78904 | H74: 31674.76027
C75: =+C74+0.25 -> 0.5 | D75: 9502.428082 | E75: 11402.9137 | F75: 12669.90411 | G75: 13936.89452 | H75: 15837.38014
C76: =+C75+0.25 -> 0.75 | D76: 6334.952055 | E76: 7601.942466 | F76: 8446.60274 | G76: 9291.263014 | H76: 10558.25342
C77: =+C76+0.25 -> 1 | D77: 4751.214041 | E77: 5701.456849 | F77: 6334.952055 | G77: 6968.44726 | H77: 7918.690068
C78: =+C77+0.25 -> 1.25 | D78: 3800.971233 | E78: 4561.165479 | F78: 5067.961644 | G78: 5574.757808 | H78: 6334.952055
O96: * | P96: Must match budget Entries | T96: *
O97: * | P97: - | T97: *
O100: * | P100: =+F16 -> 50 | Q100: ACRE | T100: *
O101: * | P101: =+#REF! ->  | Q101: Best Y | R101: =+#REF! ->  | S101: Best P | T101: *
O102: * | P102: =+#REF! ->  | Q102: Opt. Y | R102: =+#REF! ->  | S102: Opt. P | T102: *
O103: * | P103: =+#REF! ->  | Q103: Med. Y | R103: =#REF! ->  | S103: Med. P | T103: *
O104: * | P104: =+#REF! ->  | Q104: Pess. Y | R104: =#REF! ->  | S104: Pess. P | T104: *
O106: * | P106: =+#REF! ->  | Q106: Worst Y | R106: =J20 -> 0 | S106: Worst P | T106: *
O107: * | P107: 0 | Q107: H&MC | T107: *
O108: * | P108: =+G67 -> 46.45631507 | Q108: T.C. | T108: *
O109: * | P109: * | T109: *
O110: : | P110: - | T110: :
O112: : | Q112: Calculations | T112: :
O114: : | P114: - | T114: :
O115: : | P115: =0.04*P101+0.25*P102+0.42*P103+0.25*P104+0.04*P106 ->  | Q115: Exp. Y | R115: =0.04*R101+0.25*R102+0.42*R103+0.25*R104+0.04*R106 ->  | S115: Exp. P | T115: :
O117: : | P117: =0.25*(P101-P115)+0.5*(P102-P115) ->  | Q117: SYO | R117: =0.25*(R101-R115)+0.5*(R102-R115) ->  | S117: SPO | T117: :
O118: : | P118: =0.25*(P115-P106)+0.5*(P115-P104) ->  | Q118: SYP | R118: =0.25*(R115-R106)+0.5*(R115-R104) ->  | S118: SPP | T118: :
O119: : | P119: =P117^2 ->  | Q119: VYO | R119: =R117^2 ->  | S119: VPO | T119: :
O120: : | P120: =P118^2 ->  | Q120: VYP | R120: =R118^2 ->  | S120: VPP | T120: :
O121: : | P121: - | T121: :
O122: : | P122: =(P115^2*R119)+(R115-P107)^2*P119 ->  | Q122: VTRHH | R122: =(P115^2*R120)+(R115-P107)^2*P120 ->  | S122: VTRLL | T122: :
O123: : | P123: =(P115^2*R119)+(R115-P107)^2*P120 ->  | Q123: VTRHL | R123: =P115^2*R120+(R115-P107)^2*P119 ->  | S123: VTRLH | T123: :
O124: : | P124: =SQRT(P122) ->  | Q124: STRHH | R124: =SQRT(R122) ->  | S124: STRLL | T124: :
O126: : | P126: =SQRT(P123) ->  | Q126: STRHL | R126: =SQRT(R123) ->  | S126: STRLH | T126: :
O127: : | P127: =0.66*P124+0.17*P126+0.17*R126 ->  | Q127: STRO | R127: =0.66*R124+0.17*P126+0.17*R126 ->  | S127: STRP | T127: :
O128: : | P128: - | T128: :
O129: : | P129: Calculation of NR and for Z values | T129: :
O139: : | P139: - | T139: :
O140: : | P140: =R103 ->  | Q140: MP | R140: =+P146-P144 ->  | S140: ENR_MNR | T140: :
O141: : | P141: =P103 ->  | Q141: MY | R141: =P100*P124 ->  | S141: STRHH | T141: :
O142: : | P142: =+P145+0.33*(R146-R145) ->  | Q142: MTR | R142: =P100*R124 ->  | S142: STRLL | T142: :
O143: : | P143: =+G67 -> 46.45631507 | Q143: MTC | R143: =P100*P126 ->  | S143: STRHL | T143: :
O144: : | P144: =P142-P143 ->  | Q144: MNR | R144: =P100*R126 ->  | S144: STRLH | T144: :
O145: : | P145: =P100*P115*R115 ->  | Q145: ETR | R145: =P100*P127 ->  | S145: STRO | T145: :
O146: : | P146: =P145-P143 ->  | Q146: ENR | R146: =P100*R127 ->  | S146: STRP | T146: : | AV146: 1
O147: : | P147: - | T147: :
P149: =+D87>=P144 ->  | Q149: =ABS((D87-P146)/IF(P149,R145,R146)) ->  | R149: =MIN(2.5,ABS((D87-(P144+R140*ABS(D87-P144)/ABS(IF(P149,R145+R140,R146-R140))*MIN(1,Q149)))/(MIN(1.52,Q149)/1.52*IF(P149,R141,R142)+(1.52-MIN(1.52,Q149))/3.04*R143+(1.52-MIN(1.52,Q149))/3.04*R144))) ->  | S149: =1/(1+(0.2316419*R149)) ->  | T149: =0.398942281*((2.71828)^((-(R149^2)/2))) ->  | U149: =T149*(0.31938153*S149-0.356563782*S149^2+1.781477937*S149^3-1.821255978*S149^4+1.330274429*S149^5) ->  | V149: =+E87>=P144 ->  | W149: =ABS((E87-P146)/IF(V149,R145,R146)) ->  | X149: =MIN(2.5,ABS((E87-(P144+R140*ABS(E87-P144)/ABS(IF(V149,R145+R140,R146-R140))*MIN(1,W149)))/(MIN(1.52,W149)/1.52*IF(V149,R141,R142)+(1.52-MIN(1.52,W149))/3.04*R143+(1.52-MIN(1.52,W149))/3.04*R144))) ->  | Y149: =1/(1+(0.2316419*X149)) ->  | Z149: =0.398942281*((2.71828)^((-(X149^2)/2))) ->  | AA149: =Z149*(0.31938153*Y149-0.356563782*Y149^2+1.781477937*Y149^3-1.821255978*Y149^4+1.330274429*Y149^5) ->  | AB149: =+F87>=P144 ->  | AC149: =ABS((F87-P146)/IF(AB149,R145,R146)) ->  | AD149: =MIN(2.5,ABS((F87-(P144+R140*ABS(F87-P144)/ABS(IF(AB149,R145+R140,R146-R140))*MIN(1,AC149)))/(MIN(1.52,AC149)/1.52*IF(AB149,R141,R142)+(1.52-MIN(1.52,AC149))/3.04*R143+(1.52-MIN(1.52,AC149))/3.04*R144))) ->  | AE149: =1/(1+(0.2316419*AD149)) ->  | AF149: =0.398942281*((2.71828)^((-(AD149^2)/2))) ->  | AG149: =AF149*(0.31938153*AE149-0.356563782*AE149^2+1.781477937*AE149^3-1.821255978*AE149^4+1.330274429*AE149^5) -> 
R150: =MIN(2.5,ABS((D87-P146)/(MIN(1.52,Q149)/1.52*IF(P149,R141,R142)+(1.52-MIN(1.52,Q149))/3.04*R143+(1.52-MIN(1.52,Q149))/3.04*R144))) ->  | X150: =MIN(2.5,ABS((E87-P146)/(MIN(1.52,W149)/1.52*IF(V149,R141,R142)+(1.52-MIN(1.52,W149))/3.04*R143+(1.52-MIN(1.52,W149))/3.04*R144))) ->  | AD150: =MIN(2.5,ABS((F87-P146)/(MIN(1.52,AC149)/1.52*IF(AB149,R141,R142)+(1.52-MIN(1.52,AC149))/3.04*R143+(1.52-MIN(1.52,AC149))/3.04*R144))) ->  | AE150: =1/(1+(0.2316419*AD150)) ->  | AF150: =0.398942281*((2.71828)^((-(AD150^2)/2))) ->  | AG150: =AF150*(0.31938153*AE150-0.356563782*AE150^2+1.781477937*AE150^3-1.821255978*AE150^4+1.330274429*AE150^5) -> 
P151: =+G87>=P144 ->  | Q151: =ABS((G87-P146)/IF(P151,R145,R146)) ->  | R151: =MIN(2.5,ABS((G87-(P144+R140*ABS(G87-P144)/ABS(IF(P151,R145+R140,R146-R140))*MIN(1,Q151)))/(MIN(1.52,Q151)/1.52*IF(P151,R141,R142)+(1.52-MIN(1.52,Q151))/3.04*R143+(1.52-MIN(1.52,Q151))/3.04*R144))) ->  | V151: =+H87>=P144 ->  | W151: =ABS((H87-P146)/IF(V151,R145,R146)) ->  | X151: =MIN(2.5,ABS((H87-(P144+R140*ABS(H87-P144)/ABS(IF(V151,R145+R140,R146-R140))*MIN(1,W151)))/(MIN(1.52,W151)/1.52*IF(V151,R141,R142)+(1.52-MIN(1.52,W151))/3.04*R143+(1.52-MIN(1.52,W151))/3.04*R144))) ->  | AB151: =+I87>=P144 ->  | AC151: =ABS((I87-P146)/IF(AB151,R145,R146)) ->  | AD151: =MIN(2.5,ABS((I87-(P144+R140*ABS(I87-P144)/ABS(IF(AB151,R145+R140,R146-R140))*MIN(1,AC151)))/(MIN(1.52,AC151)/1.52*IF(AB151,R141,R142)+(1.52-MIN(1.52,AC151))/3.04*R143+(1.52-MIN(1.52,AC151))/3.04*R144))) ->  | AE151: =1/(1+(0.2316419*AD151)) ->  | AF151: =0.398942281*((2.71828)^((-(AD151^2)/2))) ->  | AG151: =AF151*(0.31938153*AE151-0.356563782*AE151^2+1.781477937*AE151^3-1.821255978*AE151^4+1.330274429*AE151^5) -> 
R152: =MIN(2.5,ABS((G87-P146)/(MIN(1.52,Q151)/1.52*IF(P151,R141,R142)+(1.52-MIN(1.52,Q151))/3.04*R143+(1.52-MIN(1.52,Q151))/3.04*R144))) ->  | X152: =MIN(2.5,ABS((H87-P146)/(MIN(1.52,W151)/1.52*IF(V151,R141,R142)+(1.52-MIN(1.52,W151))/3.04*R143+(1.52-MIN(1.52,W151))/3.04*R144))) ->  | AD152: =MIN(2.5,ABS((I87-P146)/(MIN(1.52,AC151)/1.52*IF(AB151,R141,R142)+(1.52-MIN(1.52,AC151))/3.04*R143+(1.52-MIN(1.52,AC151))/3.04*R144))) ->  | AE152: =1/(1+(0.2316419*AD152)) ->  | AF152: =0.398942281*((2.71828)^((-(AD152^2)/2))) ->  | AG152: =AF152*(0.31938153*AE152-0.356563782*AE152^2+1.781477937*AE152^3-1.821255978*AE152^4+1.330274429*AE152^5) -> 
P153: =+J87>=P144 ->  | Q153: =ABS((J87-P146)/IF(P153,R145,R146)) ->  | R153: =MIN(2.5,ABS((J87-(P144+R140*ABS(J87-P144)/ABS(IF(P153,R145+R140,R146-R140))*MIN(1,Q153)))/(MIN(1.52,Q153)/1.52*IF(P153,R141,R142)+(1.52-MIN(1.52,Q153))/3.04*R143+(1.52-MIN(1.52,Q153))/3.04*R144))) ->  | V153: =0>=P144 ->  | W153: =ABS((0-P146)/IF(V153,R145,R146)) ->  | X153: =MIN(2.5,ABS((0-(P144+R140*ABS(0-P144)/ABS(IF(V153,R145+R140,R146-R140))*MIN(1,W153)))/(MIN(1.52,W153)/1.52*IF(V153,R141,R142)+(1.52-MIN(1.52,W153))/3.04*R143+(1.52-MIN(1.52,W153))/3.04*R144))) -> 
R154: =MIN(2.5,ABS((J87-P146)/(MIN(1.52,Q153)/1.52*IF(P153,R141,R142)+(1.52-MIN(1.52,Q153))/3.04*R143+(1.52-MIN(1.52,Q153))/3.04*R144))) ->  | X154: =MIN(2.5,ABS((0-P146)/(MIN(1.52,W153)/1.52*IF(V153,R141,R142)+(1.52-MIN(1.52,W153))/3.04*R143+(1.52-MIN(1.52,W153))/3.04*R144))) -> 
P159: EXPDATA
P160: =P100 -> 50 | Q160: =P115 ->  | R160: =R115 ->  | S160: =I67 -> 0 | T160: =R145 ->  | U160: =R146 ->  | V160: =R141 ->  | W160: =R143 ->  | X160: =R142 ->  | Y160: =R144 -> 
B191: ALTB for calculation and return to breakeven table;
B192: ALTR for calculation and return to risk rated return table;
B193: ALTI for return to Instructions;
B194: HOME for return to beginning of budget.
B244: ALTB for calculation and return to breakeven table;
B245: ALTR for calculation and return to risk rated return table;
B247: HOME for return to beginning of budget.

Sheet Feed Cost
A1: Animal Type | B1: Steer
A2: Gain Target | B2: 1.5
A3: Calf weight | B3: 650
A4: Days fed | B4: 30
B5: $/ton | C5: $/# | D5: % of Ration | E5: #/ton | F5: Cost/ton
A6: corn | B6: 100 | C6: =+B6/2000 -> 0.05 | D6: 0.65 | E6: =+D6*2000 -> 1300 | F6: =+E6*C6 -> 65
A7: whole cottonseed | B7: 125 | C7: =+B7/2000 -> 0.0625 | D7: 0.1 | E7: =+D7*2000 -> 200 | F7: =+E7*C7 -> 12.5
A8: gin trash | B8: 15 | C8: =+B8/2000 -> 0.0075 | D8: 0.15 | E8: =+D8*2000 -> 300 | F8: =+E8*C8 -> 2.25
A9: Soybean Meal | B9: 250 | C9: =+B9/2000 -> 0.125 | D9: 0.1 | E9: =+D9*2000 -> 200 | F9: =+E9*C9 -> 25
D10: =+SUM(D6:D9) -> 1 | E10: Total | F10: =SUM(F6:F9) -> 104.75
E11: Total $/# | F11: =+F10/2000 -> 0.052375
A13: Consumption | B13: # fed/day | C13: Cost/day | D13: Total cost | E13: total # fed | F13: $/Cwt
A14: 0.005 | B14: =+A14*$B$3 -> 3.25 | C14: =+B14*$F$11 -> 0.17021875 | D14: =+C14*$B$4 -> 5.1065625 | E14: =+B14*$B$4 -> 97.5
A15: 0.01 | B15: 6.5 | C15: 0.3404375 | D15: 10.213125 | E15: =+B15*$B$4 -> 195
A16: 0.015 | B16: 9.75 | C16: 0.51065625 | D16: 15.3196875 | E16: 292.5
A17: 0.0175 | B17: 11.375 | C17: 0.595765625 | D17: 17.87296875 | E17: 341.25
A18: 0.02 | B18: 13 | C18: 0.680875 | D18: 20.42625 | E18: 390
A19: 0.022 | B19: 14.3 | C19: 0.7489625 | D19: 22.468875 | E19: 429
A20: 0.025 | B20: 16.25 | C20: 0.85109375 | D20: 25.5328125 | E20: 487.5

Sheet Procurement
I2: Return to Main Budget
B3: Procurement Cost Detail
B5: ITEM | E5: UNIT | F5: QUANTITY | G5: PRICE | H5: AMOUNT
H6: ($/hd.)
B7: Order Buying | E7: CWT. | F7: =+Main!F36 -> 4 | G7: 0.5 | H7: =F7*G7 -> 2
B8: Hauling | E8: MILES | F8: 100 | G8: 1.85 | H8: =+G8*F8/34 -> 5.441176471
B10: TOTAL PROCUREMENT COST | H10: =SUM(H7:H8) -> 7.441176471
B13: Auction & Hauling Cost Detail | I13: Return to Main Budget
B15: ITEM | E15: UNIT | F15: QUANTITY | G15: PRICE | H15: AMOUNT
B16: Commission | E16: % | F16: =+Main!H29*Main!H30 -> 928 | G16: 0.02 | H16: =+G16*F16 -> 18.56
B17: Yardage | E17: Day | F17: 1 | G17: 1 | H17: =+G17*F17 -> 1
B18: Hauling | E18: Miles | F18: 100 | G18: 1.85 | H18: =+G18*F18/24 -> 7.708333333
B20: Total Auction & Hauling Cost | H20: =+SUM(H16:H18) -> 27.26833333

Sheet Fixed_Cost
B3: INVESTMENT AND ANNUAL FIXED COST
B4: (Check All Higlighted Entries this Page)
D6: NO. OF CALVES STOCKERED: | G6: 130
D7: NO. OF ACRES: | G7: 100 | J7: Return to Budget
D8: INTEREST RATE: | G8: 0.08
D10: % OF TIME FOR | G10: SALVAGE | H10: YRS. OF | I10: CALC.
B11: ITEM | D11: THIS ENTERPRISE | F11: COST | G11: VALUE | H11: LIFE | I11: DEPR. | J11: TOTAL
B12: CATTLE EQUIP: | E12: (%) | H12: (Yr.) | I12: ($/yr.)
B13: FENCING | E13: 1 | F13: =1.8*1800 -> 3240 | G13: 0 | H13: 15 | I13: =IF(F13>0,E13*(F13-G13)/H13,0) -> 216
B14: CORRAL & LOADING CHUTE | E14: 1 | F14: 2200 | G14: 0 | H14: 10 | I14: 220
B15: FEED BUNKS | E15: 1 | F15: 2070 | G15: 0 | H15: 10 | I15: 207
B16: MISC. EQUIPMENT | E16: 1 | F16: 500 | G16: 0 | H16: 10 | I16: 50
B17: OTHER | E17: 0 | F17: 0 | G17: 0 | H17: 0 | I17: 0
B18: OTHER | E18: 0 | F18: 0 | G18: 0 | H18: 0 | I18: 0
B19: OTHER | E19: 0 | F19: 0 | G19: 0 | H19: 0 | I19: 0
B20: MACHINERY & EQUIPMENT:
B21: TRACTOR | E21: 0.08 | F21: 25000 | G21: 10000 | H21: 10 | I21: =IF(F21>0,E21*(F21-G21)/H21,0) -> 120
B22: GRAIN DRILL | E22: 1 | F22: 5000 | G22: 1000 | H22: 10 | I22: 400
B23: DISK | E23: 0.25 | F23: 6500 | G23: =0.2*F23 -> 1300 | H23: 10 | I23: 130
B24: PLOW | E24: 0.25 | F24: 7000 | G24: =0.2*F24 -> 1400 | H24: 10 | I24: 140
B25: OTHER SEEDING EQUIP. | E25: 0 | F25: 0 | G25: 0 | H25: 0 | I25: 0
B26: OTHER | E26: 0 | F26: 0 | G26: 0 | H26: 0 | I26: 0
B27: LAND | E27: 0 | F27: 50000 | G27: 50000 | H27: 30 | I27: 0
B30: TOTAL CATTLE INVESTMENT | F30: =+F13*E13+F14*E14+F15*E15+F16*E16+F17*E17+F18*E18+F19*E19 -> 8010 | G30: =+G13*E13+G14*E14+G15*E15+G16*E16+E17*G17+E18*G18+E19*G19 -> 0
B31: TOTAL MACH. & EQUIP. INVEST. | F31: =+F21*E21+F22*E22+F23*E23+F24*E24+F25*E25+F26*E26+F27*E27 -> 10375 | G31: =+G21*E21+G22*E22+G23*E23+G24*E24+G25*E25+G26*E26+G27*E27 -> 2475
B33: TOTAL CATTLE EQUIP. DEPRECIATION | J33: =SUM(I13:I19) -> 693
B34: TOTAL MACH. & EQUIP. DEPRECIATION | J34: =SUM(I21:I27) -> 790
B36: INTEREST ON CATTLE INVEST. (AVE. INV. TIMES INT. RATE) | J36: =AVERAGE(F30:G30)*G8 -> 320.4
B37: INTEREST ON MACH. & EQUIP. INVEST. (AVE. INV. TIMES INT. RATE) | J37: =AVERAGE(F31:G31)*G8 -> 514
B39: CATTLE EQUIP. TAX & INS., | F39: AVE. INV. TIMES | H39: 0.014 | J39: =AVERAGE(F30:G30)*H39 -> 56.07
B40: MACH & EQUIP. TAX & INS., | F40: AVE. INV. TIMES | H40: 0.014 | J40: =AVERAGE(F31:G31)*H40 -> 89.95
B42: TOTAL ANNUAL FIXED COST | J42: =SUM(J33:J40) -> 2463.42
I44: Per Head Marketed | J44: Total
B45: ANNUAL CATTLE EQUIP. FIXED COST | I45: =+cattle_fixed/sold -> 10.80272727 | J45: =SUM(J33,J36,J39) -> 1069.47
B46: TOTAL ANNUAL MACHINERY & EQUIPMENT FIXED COST PER ACRE | I46: =+mach_fixed/ACRES -> 27.879 | J46: =SUM(J34,J37,J40) -> 1393.95

Sheet Fixed_Payment
B2: Return to Budget
B3: ANNUAL ENTERPRISE FIXED OUTLAYS
B4: Check All Highlighted Entries this Page)
E6: NO. OF ACRES: | G6: 100
E7: NO. OF HEAD: | G7: =+sold -> 99
B10: DEBT PAYMENT CALCULATION ON NEW INVESTMENT:
B11: (For Use In Calculating Debt Payments on New Investment)
E12: UNIT | F12: TOTAL | G12: -------FINANCING-------
B13: ITEM | D13: NUMBER | E13: COST | F13: COST | G13: AMOUNT | H13: YEARS | I13: INT.RATE | J13: PAYMENT
B14: FACILITIES:
B15: FENCE (MILES) | D15: 1.8 | E15: 1800 | F15: =D15*E15 -> 3240 | G15: 0.5 | H15: 7 | I15: 0.11 | J15: =PMT(I15,H15,-F15*G15) -> 343.7887365
B16: CORRAL &
B17: LOADING CHUTE | F17: 2200 | G17: 0.5 | H17: 7 | I17: 0.11 | J17: =PMT(I17,H17,-F17*G17) -> 233.4367964
B18: FEED BUNK | F18: =9*G7 -> 891 | G18: 0.5 | H18: 7 | I18: 0.11 | J18: =PMT(I18,H18,-F18*G18) -> 94.54190254
B19: GRINDERMIXER | F19: 7000 | G19: 0.5 | H19: 7 | I19: 0.11 | J19: =PMT(I19,H19,-F19*G19) -> 742.7534431
B20: GRAIN BIN (2000 BU.) | F20: 2300 | G20: 0.5 | H20: 7 | I20: 0.11 | J20: =PMT(I20,H20,-F20*G20) -> 244.0475599
B21: MISC. EQUIP. | F21: 400 | G21: 0.5 | H21: 7 | I21: 0.11 | J21: =PMT(I21,H21,-F21*G21) -> 42.44305389
B23: LAND | D23: =Main!F18 -> 50 | E23: 500 | F23: =D23*E23 -> 25000 | G23: 0 | H23: 30 | I23: 0.1 | J23: =PMT(I23,H23,-F23*G23) -> 0
B25: CALCULATED TOTAL ANNUAL DEBT PAYMENT | J25: =SUM(J15:J23) -> 1701.011492
B28: CURRENT ANNUAL DEBT PAYMENTS:
B29: (For Use In Totaling Debt Payments on Existing Investment)
B31: LOAN # 1 | J31: 0
B32: LOAN # 2 | J32: 0
B33: LOAN # 3 | J33: 0
B34: LOAN # 4 | J34: 0
B35: LOAN # 5 | J35: 0
E37: TOTAL ANNUAL DEBT PAYMENT | J37: =SUM(J25:J36) -> 1701.011492
E39: TAXES AND INSURANCE | J39: =+Fixed_Cost!J29 -> 0
E41: TOTAL ANNUAL FIXED OUTLAY | J41: =SUM(J37:J39) -> 1701.011492
E42: TOTAL ANNUAL FIXED OUTLAY PER HEAD | J42: =+J41/G7 -> 17.18193427

Sheet G

Sheet H

Sheet I

Sheet J

Sheet K

Sheet L
N1: -23595.59459 | O1: 0.02275009265
N2: -18314.6126 | O2: 0.06680727938
A3: 1 | N3: -13033.63061 | O3: 0.1586553132
N4: -10393.13961 | O4: 0.2266273226
N5: -7752.648615 | O5: 0.3085375586
N6: -5112.157619 | O6: 0.4012937347
N7: -2471.666622 | O7: 0.4999999998
N8: -2471.666622 | O8: 0.4999999998
N9: 168.8243744 | O9: 0.5987062653
N10: 2809.315371 | O10: 0.6914624414
N11: 5449.806368 | O11: 0.7733726774
N12: 8090.297364 | O12: 0.8413446868
N13: 13371.27936 | O13: 0.9331927206
N14: 18652.26135 | O14: 0.9772499073
